[Event "*** SCC Grand Prix: Titled Tuesday Blitz"]
[Site "Chess.com"]
[Date "2020.07.21"]
[Round "3"]
[White "maxip32"]
[Black "politeplayer"]
[Result "1-0"]
[WhiteElo "2426"]
[BlackElo "2205"]
[TimeControl "180+1"]
[EndTime "10:27:06 PDT"]
[Termination "maxip32 won by resignation"]

1. e4 {[%clk 0:03:00.9]} 1... e6 {[%clk 0:02:58.3]} 2. d3 {[%clk 0:03:00.2]}
2... c5 {[%clk 0:02:56.6]} 3. Nd2 {[%clk 0:03:01.1]} 3... b6 {[%clk 0:02:56.8]}
4. Ngf3 {[%clk 0:03:01.5]} 4... Bb7 {[%clk 0:02:57.1]} 5. g3 {[%clk 0:03:02.4]}
5... d6 {[%clk 0:02:54.1]} 6. Bg2 {[%clk 0:03:03.3]} 6... Nf6 {[%clk 0:02:50.8]}
7. O-O {[%clk 0:03:03.1]} 7... Be7 {[%clk 0:02:51.1]} 8. c3 {[%clk 0:03:03.3]}
8... O-O {[%clk 0:02:47]} 9. Re1 {[%clk 0:03:04.2]} 9... Nc6 {[%clk 0:02:46.1]}
10. d4 {[%clk 0:03:02.8]} 10... cxd4 {[%clk 0:02:45.8]} 11. cxd4 {[%clk
0:03:03.7]} 11... Nb4 {[%clk 0:02:23.5]} 12. Qb3 {[%clk 0:02:50.6]} 12... d5
{[%clk 0:02:23]} 13. e5 {[%clk 0:02:50.6]} 13... Nd7 {[%clk 0:02:06.1]} 14. a3
{[%clk 0:02:37.5]} 14... Nc6 {[%clk 0:02:05.9]} 15. h4 {[%clk 0:02:24.7]} 15...
Na5 {[%clk 0:02:05.6]} 16. Qe3 {[%clk 0:02:07.1]} 16... Rc8 {[%clk 0:01:57.2]}
17. Bf1 {[%clk 0:01:59.1]} 17... Nc4 {[%clk 0:01:52.5]} 18. Qf4 {[%clk
0:01:55.1]} 18... b5 {[%clk 0:01:38.1]} 19. b3 {[%clk 0:01:53.6]} 19... Nxd2
{[%clk 0:01:27.9]} 20. Bxd2 {[%clk 0:01:54.5]} 20... Qb6 {[%clk 0:01:22.6]} 21.
Bd3 {[%clk 0:01:47.7]} 21... b4 {[%clk 0:01:16.2]} 22. a4 {[%clk 0:01:47]} 22...
Ba6 {[%clk 0:01:15.7]} 23. Bb1 {[%clk 0:01:41]} 23... f5 {[%clk 0:01:00.8]} 24.
exf6 {[%clk 0:01:34.5]} 24... Rxf6 {[%clk 0:00:59.7]} 25. Qg4 {[%clk 0:01:22.8]}
25... Rxf3 {[%clk 0:00:54.5]} 26. Qxf3 {[%clk 0:01:10.3]} 26... Qxd4 {[%clk
0:00:54.8]} 27. Ra2 {[%clk 0:01:09.3]} 27... Ne5 {[%clk 0:00:55.1]} 28. Qe3
{[%clk 0:01:03.4]} 28... Qxe3 {[%clk 0:00:47.5]} 29. Rxe3 {[%clk 0:01:04.3]}
29... Ng4 {[%clk 0:00:32.1]} 30. Rxe6 {[%clk 0:01:02.1]} 30... Bc5 {[%clk
0:00:22.6]} 31. Rxa6 {[%clk 0:00:56.8]} 31... Bxf2+ {[%clk 0:00:20]} 32. Kg2
{[%clk 0:00:56.2]} 32... Bb6 {[%clk 0:00:19.2]} 33. Bf5 {[%clk 0:00:53.4]} 33...
Rf8 {[%clk 0:00:16.7]} 34. Bxg4 {[%clk 0:00:53.3]} 34... Rf2+ {[%clk 0:00:16.6]}
35. Kh3 {[%clk 0:00:54.2]} 35... Be3 {[%clk 0:00:14.8]} 36. Bxe3 {[%clk
0:00:53.4]} 1-0

[Event "*** SCC Grand Prix: Titled Tuesday Blitz"]
[Site "Chess.com"]
[Date "2020.07.21"]
[Round "3"]
[White "Thipsay"]
[Black "Shivagami"]
[Result "1-0"]
[WhiteElo "2453"]
[BlackElo "2222"]
[TimeControl "180+1"]
[EndTime "10:27:08 PDT"]
[Termination "Thipsay won by resignation"]

1. e4 {[%clk 0:03:00.9]} 1... e5 {[%clk 0:02:57.9]} 2. Nf3 {[%clk 0:03:00.7]}
2... Nc6 {[%clk 0:02:57.4]} 3. Bb5 {[%clk 0:03:00.3]} 3... a6 {[%clk 0:02:57.5]}
4. Ba4 {[%clk 0:03:00.2]} 4... Nf6 {[%clk 0:02:57.9]} 5. O-O {[%clk 0:02:59.8]}
5... Be7 {[%clk 0:02:57.2]} 6. Re1 {[%clk 0:02:59.8]} 6... b5 {[%clk 0:02:57.2]}
7. Bb3 {[%clk 0:02:59.5]} 7... d6 {[%clk 0:02:57.7]} 8. c3 {[%clk 0:02:58.9]}
8... O-O {[%clk 0:02:56.9]} 9. h3 {[%clk 0:02:59]} 9... Nb8 {[%clk 0:02:57.3]}
10. d4 {[%clk 0:02:56.9]} 10... Nbd7 {[%clk 0:02:57.6]} 11. Nbd2 {[%clk
0:02:54.7]} 11... Bb7 {[%clk 0:02:56.1]} 12. Bc2 {[%clk 0:02:54.6]} 12... Re8
{[%clk 0:02:54.8]} 13. a4 {[%clk 0:02:54.4]} 13... Bf8 {[%clk 0:02:45.8]} 14.
Bd3 {[%clk 0:02:54]} 14... c6 {[%clk 0:02:42.9]} 15. Qc2 {[%clk 0:02:52.6]}
15... Rc8 {[%clk 0:02:30.6]} 16. b3 {[%clk 0:02:52.3]} 16... g6 {[%clk
0:02:20.2]} 17. Bb2 {[%clk 0:02:51.8]} 17... Nh5 {[%clk 0:02:08.2]} 18. Bf1
{[%clk 0:02:47.1]} 18... Nf4 {[%clk 0:02:03.7]} 19. Rad1 {[%clk 0:02:08.5]}
19... Qc7 {[%clk 0:01:37.8]} 20. Qb1 {[%clk 0:01:56.1]} 20... h5 {[%clk
0:01:28.8]} 21. b4 {[%clk 0:01:55]} 21... Bh6 {[%clk 0:01:27.3]} 22. c4 {[%clk
0:01:49.8]} 22... bxa4 {[%clk 0:01:04.4]} 23. dxe5 {[%clk 0:01:44.5]} 23... dxe5
{[%clk 0:00:55.3]} 24. c5 {[%clk 0:01:44.4]} 24... g5 {[%clk 0:00:22.7]} 25. Nc4
{[%clk 0:01:37.2]} 25... g4 {[%clk 0:00:20.8]} 26. Nh4 {[%clk 0:01:27.9]} 26...
gxh3 {[%clk 0:00:17.3]} 27. g3 {[%clk 0:01:27.4]} 27... Ne6 {[%clk 0:00:13.6]}
28. Nf5 {[%clk 0:01:26.7]} 28... Bf8 {[%clk 0:00:12.5]} 29. Ncd6 {[%clk
0:01:26]} 29... Ng5 {[%clk 0:00:12.2]} 30. Re3 {[%clk 0:01:18.3]} 30... Re6
{[%clk 0:00:11.8]} 31. Nxc8 {[%clk 0:01:16.9]} 31... Qxc8 {[%clk 0:00:11.4]} 32.
Kh2 {[%clk 0:01:14.9]} 32... Rg6 {[%clk 0:00:08.6]} 33. Bc3 {[%clk 0:01:14]}
33... Nf6 {[%clk 0:00:08.6]} 34. f3 {[%clk 0:01:12.4]} 34... Ngxe4 {[%clk
0:00:06.1]} 35. Rxe4 {[%clk 0:01:10.5]} 35... Nxe4 {[%clk 0:00:05.9]} 36. Qxe4
{[%clk 0:01:09.6]} 1-0

[Event "*** SCC Grand Prix: Titled Tuesday Blitz"]
[Site "Chess.com"]
[Date "2020.07.21"]
[Round "3"]
[White "Th3_Hound"]
[Black "Phriex"]
[Result "1-0"]
[WhiteElo "2597"]
[BlackElo "2373"]
[TimeControl "180+1"]
[EndTime "10:27:09 PDT"]
[Termination "Th3_Hound won by checkmate"]

1. e4 {[%clk 0:03:00.9]} 1... c5 {[%clk 0:02:59.7]} 2. Nf3 {[%clk 0:03:00.9]}
2... e6 {[%clk 0:03:00.3]} 3. d4 {[%clk 0:03:00.2]} 3... cxd4 {[%clk 0:03:01.2]}
4. Nxd4 {[%clk 0:03:00.7]} 4... Nc6 {[%clk 0:03:01.6]} 5. Nc3 {[%clk 0:02:59.8]}
5... Qc7 {[%clk 0:03:02]} 6. Be3 {[%clk 0:02:54]} 6... a6 {[%clk 0:03:02.1]} 7.
Qd2 {[%clk 0:02:52.8]} 7... Nf6 {[%clk 0:03:01.5]} 8. f3 {[%clk 0:02:53.2]} 8...
Be7 {[%clk 0:02:59.6]} 9. O-O-O {[%clk 0:02:52.5]} 9... b5 {[%clk 0:02:57.9]}
10. g4 {[%clk 0:02:50.3]} 10... Nxd4 {[%clk 0:02:55.9]} 11. Bxd4 {[%clk
0:02:50.2]} 11... Bb7 {[%clk 0:02:56.2]} 12. g5 {[%clk 0:02:47]} 12... Nh5
{[%clk 0:02:55.9]} 13. Kb1 {[%clk 0:02:27.3]} 13... b4 {[%clk 0:02:52.9]} 14.
Ne2 {[%clk 0:02:21.8]} 14... d5 {[%clk 0:02:51.6]} 15. e5 {[%clk 0:02:20.4]}
15... Rc8 {[%clk 0:02:45.6]} 16. Ng3 {[%clk 0:02:15.8]} 16... Bxg5 {[%clk
0:02:37.9]} 17. Qf2 {[%clk 0:02:03.4]} 17... Nf4 {[%clk 0:02:24]} 18. h4 {[%clk
0:02:00.8]} 18... Bh6 {[%clk 0:02:24.2]} 19. Rh2 {[%clk 0:01:43.1]} 19... Ng6
{[%clk 0:02:23.8]} 20. Nh5 {[%clk 0:01:33.7]} 20... Nxe5 {[%clk 0:02:16.6]} 21.
Rg2 {[%clk 0:01:33.7]} 21... g6 {[%clk 0:01:46.8]} 22. f4 {[%clk 0:01:25.4]}
22... Nc4 {[%clk 0:01:22.7]} 23. Bxh8 {[%clk 0:01:06]} 23... gxh5 {[%clk
0:01:20.6]} 24. Bxc4 {[%clk 0:00:52.9]} 24... Qxc4 {[%clk 0:01:14.9]} 25. Rg8+
{[%clk 0:00:47.7]} 25... Ke7 {[%clk 0:01:05.1]} 26. Rxc8 {[%clk 0:00:48]} 26...
Bxc8 {[%clk 0:00:57.8]} 27. Be5 {[%clk 0:00:45.1]} 27... Bd7 {[%clk 0:00:44]}
28. b3 {[%clk 0:00:45.3]} 28... Qe4 {[%clk 0:00:41.9]} 29. Qc5+ {[%clk
0:00:44.7]} 29... Ke8 {[%clk 0:00:35.6]} 30. Rg1 {[%clk 0:00:42.2]} 30... Bf8
{[%clk 0:00:17]} 31. Qxf8+ {[%clk 0:00:38.6]} 31... Kxf8 {[%clk 0:00:15.6]} 32.
Bd6+ {[%clk 0:00:38.4]} 32... Ke8 {[%clk 0:00:16.3]} 33. Rg8# {[%clk 0:00:38.4]}
1-0

[Event "*** SCC Grand Prix: Titled Tuesday Blitz"]
[Site "Chess.com"]
[Date "2020.07.21"]
[Round "3"]
[White "BikingBrian"]
[Black "LilRag"]
[Result "0-1"]
[WhiteElo "2210"]
[BlackElo "2501"]
[TimeControl "180+1"]
[EndTime "10:27:10 PDT"]
[Termination "LilRag won by resignation"]

1. d4 {[%clk 0:03:00.9]} 1... Nf6 {[%clk 0:02:59.4]} 2. Bg5 {[%clk 0:02:59.6]}
2... e6 {[%clk 0:02:58.8]} 3. Nd2 {[%clk 0:02:58]} 3... d5 {[%clk 0:02:58.4]} 4.
e3 {[%clk 0:02:58.1]} 4... Nbd7 {[%clk 0:02:57.4]} 5. f4 {[%clk 0:02:57.4]} 5...
c5 {[%clk 0:02:56.9]} 6. c3 {[%clk 0:02:57]} 6... h6 {[%clk 0:02:57.2]} 7. Bh4
{[%clk 0:02:56.5]} 7... Be7 {[%clk 0:02:55.1]} 8. Ngf3 {[%clk 0:02:56.6]} 8...
Ne4 {[%clk 0:02:53.3]} 9. Bxe7 {[%clk 0:02:54.1]} 9... Qxe7 {[%clk 0:02:51.1]}
10. Nxe4 {[%clk 0:02:52.4]} 10... dxe4 {[%clk 0:02:50.9]} 11. Ne5 {[%clk
0:02:51.3]} 11... cxd4 {[%clk 0:02:47.7]} 12. exd4 {[%clk 0:02:51]} 12... Nxe5
{[%clk 0:02:43.8]} 13. dxe5 {[%clk 0:02:47.8]} 13... O-O {[%clk 0:02:36.1]} 14.
Qd4 {[%clk 0:02:30.1]} 14... Bd7 {[%clk 0:02:35]} 15. Be2 {[%clk 0:02:19.9]}
15... Bc6 {[%clk 0:02:34.5]} 16. O-O {[%clk 0:02:19.7]} 16... Rfd8 {[%clk
0:02:34.5]} 17. Qe3 {[%clk 0:02:19.8]} 17... a6 {[%clk 0:02:27.5]} 18. Rad1
{[%clk 0:02:18.9]} 18... Qc7 {[%clk 0:02:26.6]} 19. Rxd8+ {[%clk 0:02:10.8]}
19... Rxd8 {[%clk 0:02:25.9]} 20. Rd1 {[%clk 0:02:11]} 20... Rxd1+ {[%clk
0:02:22.9]} 21. Bxd1 {[%clk 0:02:11.9]} 21... Qa5 {[%clk 0:02:22.4]} 22. a3
{[%clk 0:02:04.2]} 22... Qd5 {[%clk 0:02:19.4]} 23. Bc2 {[%clk 0:01:59.7]} 23...
Qa2 {[%clk 0:02:10.9]} 24. Bxe4 {[%clk 0:01:41.4]} 24... Qa1+ {[%clk 0:02:07.1]}
25. Kf2 {[%clk 0:01:39.2]} 25... Qxb2+ {[%clk 0:02:07.4]} 26. Kf3 {[%clk
0:01:15.6]} 26... Bxe4+ {[%clk 0:02:03.2]} 27. Kxe4 {[%clk 0:01:16.5]} 27...
Qxg2+ {[%clk 0:02:01.5]} 28. Kd3 {[%clk 0:01:08.6]} 28... Qf1+ {[%clk
0:01:46.7]} 29. Kc2 {[%clk 0:00:57.8]} 29... Qg2+ {[%clk 0:01:43.7]} 30. Kb3
{[%clk 0:00:57.1]} 30... Qxh2 {[%clk 0:01:42.9]} 31. Qd4 {[%clk 0:00:57.5]}
31... Qg2 {[%clk 0:01:39.4]} 32. Qd8+ {[%clk 0:00:55.1]} 32... Kh7 {[%clk
0:01:38]} 33. Qc7 {[%clk 0:00:52]} 33... Qd5+ {[%clk 0:01:36]} 34. Kb2 {[%clk
0:00:48.8]} 34... Kg6 {[%clk 0:01:27.7]} 35. c4 {[%clk 0:00:41.1]} 35... Qc6
{[%clk 0:01:19.9]} 36. Qd8 {[%clk 0:00:34]} 36... Qxc4 {[%clk 0:01:15.6]} 37.
Qh4 {[%clk 0:00:33.7]} 37... Qe2+ {[%clk 0:01:06]} 38. Kb3 {[%clk 0:00:32.8]}
38... Qd3+ {[%clk 0:01:01.7]} 39. Kb2 {[%clk 0:00:32.6]} 39... Qd7 {[%clk
0:00:57.2]} 40. Qf2 {[%clk 0:00:23.3]} 40... Kh7 {[%clk 0:00:52.7]} 41. f5
{[%clk 0:00:20.1]} 41... exf5 {[%clk 0:00:50]} 42. Qf4 {[%clk 0:00:20.3]} 42...
Qe6 {[%clk 0:00:47.6]} 0-1

[Event "*** SCC Grand Prix: Titled Tuesday Blitz"]
[Site "Chess.com"]
[Date "2020.07.21"]
[Round "3"]
[White "RodinMihail"]
[Black "Karina_Ivanova"]
[Result "1-0"]
[WhiteElo "2488"]
[BlackElo "2188"]
[TimeControl "180+1"]
[EndTime "10:27:10 PDT"]
[Termination "RodinMihail won on time"]

1. e4 {[%clk 0:03:00.9]} 1... c6 {[%clk 0:02:55]} 2. d4 {[%clk 0:03:00.5]} 2...
d5 {[%clk 0:02:52.3]} 3. e5 {[%clk 0:03:00.9]} 3... Bf5 {[%clk 0:02:50.2]} 4.
Nc3 {[%clk 0:03:01.2]} 4... e6 {[%clk 0:02:47.6]} 5. g4 {[%clk 0:03:01.6]} 5...
Bg6 {[%clk 0:02:47.3]} 6. Nge2 {[%clk 0:03:02.1]} 6... Ne7 {[%clk 0:02:26.8]} 7.
f4 {[%clk 0:03:00.1]} 7... h5 {[%clk 0:02:24.2]} 8. f5 {[%clk 0:03:00]} 8...
exf5 {[%clk 0:02:19.7]} 9. g5 {[%clk 0:02:59.2]} 9... Nd7 {[%clk 0:02:07.7]} 10.
h4 {[%clk 0:02:52.1]} 10... Qa5 {[%clk 0:02:03]} 11. Be3 {[%clk 0:02:47.7]}
11... O-O-O {[%clk 0:02:00.4]} 12. Qd2 {[%clk 0:02:46.7]} 12... c5 {[%clk
0:01:45.9]} 13. O-O-O {[%clk 0:02:39]} 13... Nc6 {[%clk 0:01:26.6]} 14. Kb1
{[%clk 0:02:30.7]} 14... cxd4 {[%clk 0:01:16.1]} 15. Nxd4 {[%clk 0:02:30.7]}
15... Ndxe5 {[%clk 0:01:11.5]} 16. Nb3 {[%clk 0:02:30.4]} 16... Qc7 {[%clk
0:01:00.6]} 17. Nxd5 {[%clk 0:02:26.1]} 17... Qd7 {[%clk 0:00:44.3]} 18. Bf4
{[%clk 0:02:21.3]} 18... Bd6 {[%clk 0:00:34.2]} 19. Qc3 {[%clk 0:02:09.6]} 19...
Rhe8 {[%clk 0:00:19.7]} 20. Bb5 {[%clk 0:02:05.7]} 20... Kb8 {[%clk 0:00:18.2]}
21. Rhe1 {[%clk 0:01:52.4]} 21... Qc8 {[%clk 0:00:16.3]} 22. a3 {[%clk
0:01:33.8]} 22... Re6 {[%clk 0:00:12.9]} 23. Qg3 {[%clk 0:01:12.2]} 23... Ka8
{[%clk 0:00:06.5]} 24. Bxc6 {[%clk 0:01:02.9]} 24... Nxc6 {[%clk 0:00:05.7]} 25.
Rxe6 {[%clk 0:01:01.3]} 25... Bxf4 {[%clk 0:00:04.6]} 26. Qxf4 {[%clk 0:00:55]}
26... fxe6 {[%clk 0:00:04]} 27. Nc7+ {[%clk 0:00:52.4]} 27... Qxc7 {[%clk
0:00:03.3]} 28. Qxc7 {[%clk 0:00:51.5]} 28... Rxd1+ {[%clk 0:00:01.4]} 29. Ka2
{[%clk 0:00:52.1]} 29... a6 {[%clk 0:00:02.3]} 30. Qxg7 {[%clk 0:00:50.6]} 1-0

[Event "*** SCC Grand Prix: Titled Tuesday Blitz"]
[Site "Chess.com"]
[Date "2020.07.21"]
[Round "3"]
[White "Munkhzul_Turmunkh"]
[Black "sewin16"]
[Result "1-0"]
[WhiteElo "2603"]
[BlackElo "2383"]
[TimeControl "180+1"]
[EndTime "10:27:14 PDT"]
[Termination "Munkhzul_Turmunkh won on time"]

1. e4 {[%clk 0:03:00.9]} 1... e5 {[%clk 0:02:59.6]} 2. Nf3 {[%clk 0:03:00.5]}
2... Nc6 {[%clk 0:02:59.8]} 3. Bb5 {[%clk 0:02:59.8]} 3... Nge7 {[%clk
0:02:59.7]} 4. O-O {[%clk 0:02:52.8]} 4... g6 {[%clk 0:02:58.6]} 5. c3 {[%clk
0:02:52]} 5... a6 {[%clk 0:02:58.2]} 6. Ba4 {[%clk 0:02:51.7]} 6... Bg7 {[%clk
0:02:57.3]} 7. d4 {[%clk 0:02:51.5]} 7... exd4 {[%clk 0:02:58.2]} 8. cxd4 {[%clk
0:02:52.2]} 8... O-O {[%clk 0:02:58]} 9. Nc3 {[%clk 0:02:43.9]} 9... b5 {[%clk
0:02:57.4]} 10. Bb3 {[%clk 0:02:43.1]} 10... d6 {[%clk 0:02:57.2]} 11. h3 {[%clk
0:02:41.3]} 11... Na5 {[%clk 0:02:56.9]} 12. Bc2 {[%clk 0:02:41.2]} 12... c5
{[%clk 0:02:56.6]} 13. dxc5 {[%clk 0:02:37]} 13... dxc5 {[%clk 0:02:55.6]} 14.
Qxd8 {[%clk 0:02:33.7]} 14... Rxd8 {[%clk 0:02:54.8]} 15. Be3 {[%clk 0:02:34.6]}
15... Nc4 {[%clk 0:02:27.8]} 16. Bxc5 {[%clk 0:02:24.9]} 16... Nc6 {[%clk
0:02:27.3]} 17. a4 {[%clk 0:02:06.2]} 17... b4 {[%clk 0:02:03.4]} 18. Nd5 {[%clk
0:02:04.2]} 18... Bxb2 {[%clk 0:02:00.1]} 19. Rab1 {[%clk 0:01:58.5]} 19... Ba3
{[%clk 0:01:55.6]} 20. Bb3 {[%clk 0:01:51.1]} 20... N4a5 {[%clk 0:01:51.6]} 21.
Bb6 {[%clk 0:01:45.2]} 21... Rf8 {[%clk 0:01:43.4]} 22. Nd4 {[%clk 0:01:32.8]}
22... Nxb3 {[%clk 0:01:35]} 23. Rxb3 {[%clk 0:01:32.5]} 23... Nxd4 {[%clk
0:01:19]} 24. Bxd4 {[%clk 0:01:33.4]} 24... Rd8 {[%clk 0:01:15.5]} 25. Bf6
{[%clk 0:01:27.1]} 25... Rd6 {[%clk 0:01:13.9]} 26. Be7 {[%clk 0:01:21]} 26...
Re6 {[%clk 0:01:09.3]} 27. Bxb4 {[%clk 0:01:14.8]} 27... Bxb4 {[%clk 0:01:07.9]}
28. Rxb4 {[%clk 0:01:15.7]} 28... a5 {[%clk 0:00:54.3]} 29. Rd4 {[%clk
0:01:14.9]} 29... Rb8 {[%clk 0:00:27.8]} 30. Rc1 {[%clk 0:01:14.2]} 30... Bd7
{[%clk 0:00:22.5]} 31. Rc7 {[%clk 0:01:05.6]} 31... Be8 {[%clk 0:00:15.5]} 32.
Ra7 {[%clk 0:00:57.5]} 32... Rb1+ {[%clk 0:00:04.5]} 33. Kh2 {[%clk 0:00:56.9]}
33... Rb2 {[%clk 0:00:04.4]} 34. f3 {[%clk 0:00:52.7]} 1-0

[Event "*** SCC Grand Prix: Titled Tuesday Blitz"]
[Site "Chess.com"]
[Date "2020.07.21"]
[Round "3"]
[White "tk22h"]
[Black "m_ezat"]
[Result "0-1"]
[WhiteElo "2304"]
[BlackElo "2564"]
[TimeControl "180+1"]
[EndTime "10:27:18 PDT"]
[Termination "m_ezat won by resignation"]

1. c4 {[%clk 0:03:00.9]} 1... Nf6 {[%clk 0:02:56.6]} 2. Nc3 {[%clk 0:02:59.7]}
2... g6 {[%clk 0:02:56.8]} 3. Nf3 {[%clk 0:02:58.9]} 3... Bg7 {[%clk 0:02:56.1]}
4. g3 {[%clk 0:02:59.5]} 4... O-O {[%clk 0:02:56]} 5. Bg2 {[%clk 0:02:59.6]}
5... d5 {[%clk 0:02:56.4]} 6. cxd5 {[%clk 0:02:58.9]} 6... Nxd5 {[%clk
0:02:55.9]} 7. O-O {[%clk 0:02:59.4]} 7... c5 {[%clk 0:02:56]} 8. Nxd5 {[%clk
0:02:57.8]} 8... Qxd5 {[%clk 0:02:55.4]} 9. d3 {[%clk 0:02:58.1]} 9... Nc6
{[%clk 0:02:55.4]} 10. Be3 {[%clk 0:02:57]} 10... Bxb2 {[%clk 0:02:55.1]} 11.
Rb1 {[%clk 0:02:56.9]} 11... Bf6 {[%clk 0:02:55.1]} 12. Qa4 {[%clk 0:02:56.8]}
12... Qd6 {[%clk 0:02:44]} 13. Nd2 {[%clk 0:02:54.3]} 13... Nd4 {[%clk 0:02:25]}
14. Bxd4 {[%clk 0:02:53.5]} 14... Bxd4 {[%clk 0:02:23.4]} 15. Bxb7 {[%clk
0:02:51]} 15... Bh3 {[%clk 0:02:09.8]} 16. Bg2 {[%clk 0:02:49.2]} 16... Bxg2
{[%clk 0:02:05.3]} 17. Kxg2 {[%clk 0:02:49.1]} 17... Rab8 {[%clk 0:02:02]} 18.
Ne4 {[%clk 0:02:40.8]} 18... Qd5 {[%clk 0:01:59.8]} 19. Qc4 {[%clk 0:02:38.8]}
19... Qxc4 {[%clk 0:01:59.7]} 20. dxc4 {[%clk 0:02:38.6]} 20... Rb4 {[%clk
0:01:57.4]} 21. Rxb4 {[%clk 0:02:34.4]} 21... cxb4 {[%clk 0:01:57]} 22. Nd2
{[%clk 0:02:31.4]} 22... Rc8 {[%clk 0:01:54.2]} 23. Nb3 {[%clk 0:02:22.6]} 23...
Rxc4 {[%clk 0:01:50.5]} 24. Rd1 {[%clk 0:02:22.1]} 24... Bf6 {[%clk 0:01:47.4]}
25. Rd8+ {[%clk 0:02:17.6]} 25... Kg7 {[%clk 0:01:47.6]} 26. Kf3 {[%clk
0:02:15]} 26... Rc2 {[%clk 0:01:42.3]} 27. Rb8 {[%clk 0:02:13.2]} 27... Bc3
{[%clk 0:01:32.6]} 28. Rb7 {[%clk 0:02:10.8]} 28... Rxa2 {[%clk 0:01:32.5]} 29.
Rxe7 {[%clk 0:02:10.1]} 29... a5 {[%clk 0:01:29.7]} 30. Nc5 {[%clk 0:02:08.1]}
30... Ra3 {[%clk 0:01:20.6]} 31. e3 {[%clk 0:02:03.7]} 31... b3 {[%clk
0:01:19.1]} 32. Rb7 {[%clk 0:02:00]} 32... Bb4 {[%clk 0:01:18.5]} 33. Nd3 {[%clk
0:01:42.4]} 33... Bd6 {[%clk 0:01:10.5]} 34. Ke2 {[%clk 0:01:38]} 34... a4
{[%clk 0:01:08.7]} 35. e4 {[%clk 0:01:37.9]} 35... Ra2+ {[%clk 0:01:08.4]} 36.
Ke3 {[%clk 0:01:37.2]} 36... Rc2 {[%clk 0:01:01.5]} 37. e5 {[%clk 0:01:34.7]}
37... Bc5+ {[%clk 0:00:57.9]} 38. Ke4 {[%clk 0:01:29.6]} 38... Kf8 {[%clk
0:00:39.1]} 39. Kd5 {[%clk 0:01:21.5]} 39... Bxf2 {[%clk 0:00:36.6]} 40. Nf4
{[%clk 0:01:18.2]} 40... Be3 {[%clk 0:00:23]} 41. e6 {[%clk 0:01:13.6]} 41...
Bxf4 {[%clk 0:00:21]} 42. gxf4 {[%clk 0:01:13.7]} 42... Rd2+ {[%clk 0:00:19.8]}
43. Kc5 {[%clk 0:01:10.5]} 43... fxe6 {[%clk 0:00:19]} 44. Rb4 {[%clk
0:01:09.5]} 44... b2 {[%clk 0:00:18.5]} 45. Kb5 {[%clk 0:01:07.7]} 45... a3
{[%clk 0:00:17.9]} 0-1

[Event "*** SCC Grand Prix: Titled Tuesday Blitz"]
[Site "Chess.com"]
[Date "2020.07.21"]
[Round "3"]
[White "SCIM"]
[Black "kasparicy"]
[Result "1-0"]
[WhiteElo "2571"]
[BlackElo "2341"]
[TimeControl "180+1"]
[EndTime "10:27:19 PDT"]
[Termination "SCIM won by resignation"]

1. d4 {[%clk 0:02:36.9]} 1... Nf6 {[%clk 0:02:58.8]} 2. c4 {[%clk 0:02:37]} 2...
g6 {[%clk 0:02:58.9]} 3. Nc3 {[%clk 0:02:36.2]} 3... d5 {[%clk 0:02:59.1]} 4.
cxd5 {[%clk 0:02:36.3]} 4... Nxd5 {[%clk 0:03:00]} 5. e4 {[%clk 0:02:37]} 5...
Nxc3 {[%clk 0:02:59.9]} 6. bxc3 {[%clk 0:02:37.9]} 6... Bg7 {[%clk 0:03:00.7]}
7. Bc4 {[%clk 0:02:38.5]} 7... c5 {[%clk 0:03:01.6]} 8. Ne2 {[%clk 0:02:38.5]}
8... O-O {[%clk 0:03:01.8]} 9. Be3 {[%clk 0:02:38.4]} 9... Nc6 {[%clk
0:03:02.4]} 10. O-O {[%clk 0:02:38.3]} 10... Bg4 {[%clk 0:03:02.9]} 11. d5
{[%clk 0:02:38]} 11... Na5 {[%clk 0:02:38.4]} 12. Bb5 {[%clk 0:02:37.3]} 12...
a6 {[%clk 0:02:25.2]} 13. Bd3 {[%clk 0:02:37.3]} 13... c4 {[%clk 0:02:03.9]} 14.
Bc2 {[%clk 0:02:34.2]} 14... Bxe2 {[%clk 0:01:37.9]} 15. Qxe2 {[%clk 0:02:35.1]}
15... e6 {[%clk 0:01:38.3]} 16. dxe6 {[%clk 0:02:27.7]} 16... fxe6 {[%clk
0:01:34]} 17. Rad1 {[%clk 0:02:28.6]} 17... Qc7 {[%clk 0:01:30.6]} 18. Bd4
{[%clk 0:02:26.4]} 18... b5 {[%clk 0:01:30]} 19. Bxg7 {[%clk 0:02:20.6]} 19...
Qxg7 {[%clk 0:01:30.9]} 20. e5 {[%clk 0:02:20.5]} 20... Rad8 {[%clk 0:01:27.7]}
21. f4 {[%clk 0:02:13.7]} 21... Nc6 {[%clk 0:01:20.9]} 22. Qe4 {[%clk
0:02:07.8]} 22... Qa7+ {[%clk 0:01:11.6]} 23. Kh1 {[%clk 0:02:05.7]} 23... Ne7
{[%clk 0:01:12.2]} 24. Rd6 {[%clk 0:02:00.3]} 24... Nd5 {[%clk 0:00:57.5]} 25.
Rxe6 {[%clk 0:01:51.8]} 25... Nxc3 {[%clk 0:00:56.3]} 26. Qf3 {[%clk 0:01:44.8]}
26... Nd5 {[%clk 0:00:14.7]} 27. Bxg6 {[%clk 0:00:52.2]} 27... hxg6 {[%clk
0:00:15.6]} 28. Rxg6+ {[%clk 0:00:51.3]} 28... Kh8 {[%clk 0:00:16]} 29. Qh5+
{[%clk 0:00:46.7]} 29... Qh7 {[%clk 0:00:14.5]} 30. Rh6 {[%clk 0:00:47.3]} 30...
Rd7 {[%clk 0:00:14.4]} 31. e6 {[%clk 0:00:42.4]} 31... Re7 {[%clk 0:00:09.3]}
32. Rxh7+ {[%clk 0:00:41.1]} 32... Rxh7 {[%clk 0:00:08.4]} 33. Qxd5 {[%clk
0:00:41.5]} 1-0